fUSD/lending_fUSD_20250124
["ID","MTS","AMOUNT","RATE_DAILY","PERIOD"]
[350187368,1737677463787,-1453.94,0.00018629,2]
[350187369,1737677463801,-500.0,0.00018629,2]
[350187370,1737677463811,-500.0,0.00018629,2]
[350187371,1737677463820,-555.39,0.00018629,2]
[350187372,1737677463831,-500.0,0.00018629,2]
[350187373,1737677463841,-500.0,0.00018629,2]
[350187374,1737677463851,-500.0,0.00018629,2]
[350187375,1737677463861,-500.0,0.00018629,2]
[350187376,1737677463872,-500.0,0.00018629,2]
[350187377,1737677463883,-500.0,0.00018629,2]
[350187378,1737677463893,-500.0,0.00018629,2]
[350187379,1737677463904,-500.0,0.00018629,2]
[350187380,1737677463920,-219.97964788,0.00018629,2]
[350187381,1737677463932,-452.48811148,0.00018629,2]
[350187382,1737677463944,-179.08224064,0.00018629,2]
[350187383,1737677463955,-2044.29,0.00018629,2]
[350187384,1737677463965,-500.0,0.00018629,2]
[350187385,1737677463976,-500.0,0.00018629,2]
[350187386,1737677463987,-941.3,0.00018629,2]
[350187387,1737677463997,-500.0,0.0001863,2]
[350187388,1737677464008,-255.127159,0.0001863,2]
[350187389,1737677464019,-500.0,0.0001863,2]
[350187390,1737677464028,-138.20060036,0.0001863,2]
[350187391,1737677464043,-361.79939964,0.0001863,2]
[350187392,1737677464053,-152.961161,0.0001863,2]
[350187393,1737677464063,-500.0,0.0001863,2]
[350187394,1737677464073,-161.184969,0.0001863,2]
[350187395,1737677464082,-500.0,0.0001863,2]
[350187396,1737677464092,-836.78,0.0001863,2]
[350187397,1737677464102,-524.69,0.0001863,2]
[350187398,1737677464112,-556.71,0.0001863,2]
[350187399,1737677464122,-164.154822,0.0001863,2]
[350187400,1737677464133,-367.8538923,0.0001863,2]
[350187401,1737677464345,-500.0,0.00016438,2]
[350187402,1737677464355,-500.0,0.00016438,2]
[350187403,1737677464365,-500.0,0.00016438,2]
[350187404,1737677464376,-500.0,0.00016711,2]
[350187405,1737677464385,-500.0,0.00016712,2]
[350187406,1737677464395,-500.0,0.00016712,2]
[350187407,1737677464404,-280.41,0.00016712,2]
[350187408,1737677464414,-500.0,0.00016712,2]
[350187409,1737677464424,-500.0,0.00016986,2]
[350187410,1737677464435,-747.0561077,0.0001863,2]
[350187411,1737677464445,-1089.95,0.0001863,2]
[350187412,1737677464455,-510.61,0.0001863,2]
[350187413,1737677464465,-798.65618691,0.0001863,2]
[350187414,1737677464477,-442.64381309,0.0001863,2]
[350187415,1737677464487,-641.56268268,0.0001863,2]
[350187416,1737677464542,-500.0,0.00016986,2]
[350187417,1737677464553,-348.86731732,0.0001863,2]
[350187418,1737677464562,-658.08,0.0001863,2]
[350187419,1737677464572,-1007.53,0.0001863,2]
[350187420,1737677464583,-751.01,0.0001863,2]
[350187421,1737677464592,-1841.81,0.0001863,2]
[350187422,1737677464602,-500.0,0.0001863,2]
[350187423,1737677464611,-986.92,0.0001863,2]
[350187424,1737677464621,-578.89,0.0001863,2]
[350187425,1737677464631,-500.0,0.0001863,2]
[350187426,1737677464642,-591.97,0.0001863,2]
[350187427,1737677464652,-1238.24,0.0001863,2]
[350187428,1737677464661,-500.0,0.0001863,2]
[350187429,1737677464670,-525.82,0.0001863,2]
[350187430,1737677464681,-500.0,0.0001863,2]
[350187431,1737677464691,-500.0,0.0001863,2]
[350187432,1737677464702,-941.12,0.0001863,2]
[350187433,1737677464712,-969.89,0.0001863,2]
[350187434,1737677464722,-819.74,0.0001863,2]
[350187435,1737677464732,-500.0,0.0001863,2]
[350187436,1737677464742,-356.6896579,0.0001863,2]
[350187437,1737677464752,-677.26,0.0001863,2]
[350187438,1737677464763,-500.0,0.0001863,2]
[350187439,1737677464773,-870.66,0.0001863,2]
[350187440,1737677464874,-500.0,0.0001863,2]
[350187441,1737677464885,-643.26,0.0001863,2]
[350187442,1737677464895,-507.81,0.0001863,2]
[350187443,1737677464906,-839.49,0.0001863,2]
[350187444,1737677464916,-1229.74,0.0001863,2]
[350187445,1737677464930,-736.88,0.0001863,2]
[350187446,1737677464940,-560.36,0.0001863,2]
[350187447,1737677464950,-500.0,0.0001863,2]
[350187448,1737677464960,-500.0,0.0001863,2]
[350187449,1737677464970,-500.0,0.0001863,2]
[350187450,1737677464980,-826.37,0.0001863,2]
[350187451,1737677464989,-150.0,0.00018632,2]
[350187452,1737677465000,-150.0,0.00018633,2]
[350187453,1737677465009,-150.0,0.00018633,2]
[350187454,1737677465019,-150.0,0.00018638,2]
[350187455,1737677465028,-150.0,0.00018638,2]
[350187456,1737677465037,-7.37076529,0.00018639,2]
[350187457,1737677465052,-142.62923471,0.00018639,2]
[350187458,1737677465061,-150.0,0.0001864,2]
[350187459,1737677465071,-150.0,0.0001864,2]
[350187460,1737677465081,-150.0,0.00018648,2]
[350187461,1737677465091,-150.0,0.00018649,2]
[350187462,1737677465101,-150.0,0.00018652,2]
[350187463,1737677465111,-150.0,0.00018658,2]
[350187464,1737677465121,-150.0,0.00018659,2]
[350187465,1737677465130,-150.0,0.00018659,2]
[350187466,1737677465141,-150.0,0.00018659,2]
[350187467,1737677465150,-150.0,0.00018659,2]
[350187468,1737677465160,-150.0,0.00018663,2]
[350187469,1737677465169,-150.0,0.00018666,2]
[350187470,1737677465179,-166.50684421,0.00018667,2]
[350187471,1737677465188,-184.18102978,0.00018668,2]
[350187472,1737677465198,-150.0,0.00018669,2]
[350187473,1737677465207,-150.0,0.0001867,2]
[350187474,1737677465217,-435.01519971,0.00018671,2]
[350187475,1737677465229,-564.98480029,0.00018671,2]
[350187476,1737677465238,-150.0,0.00018673,2]
[350187477,1737677465248,-150.0,0.00018676,2]
[350187478,1737677465257,-150.0,0.00018679,2]
[350187479,1737677465267,-150.0,0.0001868,2]
[350187480,1737677465277,-150.0,0.0001868,2]
[350187481,1737677465286,-195.14465794,0.00018681,2]
[350187482,1737677465298,-195.14465792,0.00018681,2]
[350187483,1737677465307,-195.14465792,0.00018681,2]
[350187484,1737677465317,-150.0,0.00018683,2]
[350187485,1737677465327,-150.0,0.00018684,2]
[350187486,1737677465337,-150.0,0.00018686,2]
[350187487,1737677465346,-150.0,0.00018687,2]
[350187488,1737677465355,-203.74815304,0.00018687,2]
[350187489,1737677465364,-150.0,0.00018689,2]
[350187490,1737677465374,-602.4175151,0.0001869,2]
[350187491,1737677465383,-1740.46549792,0.0001869,2]
[350187492,1737677465394,-956.67861078,0.0001869,2]
[350187493,1737677465403,-369.35060179,0.0001869,2]
[350187494,1737677465561,-500.0,0.00016711,2]
[350187495,1737677465570,-500.0,0.00016711,2]
[350187496,1737677465579,-65.83165509,0.00016711,2]
[350187501,1737678006370,287.01,0.00010137,2]
[350187521,1737678495329,155.66,0.00016658,30]
[350187529,1737678632358,-169.21,0.00012695,2]
[350187530,1737678632368,-553.9,0.0001458,2]
[350187531,1737678632378,-550.0,0.00015,2]
[350187532,1737678632388,-22257.82605258,0.00015,2]
[350187533,1737678632397,-1517.64,0.000153,2]
[350187534,1737678632407,-1467.49809187,0.000154,2]
[350187535,1737678632417,-12020.3463944,0.00015655,2]
[350187536,1737678632466,-1470.9993,0.00015655,2]
[350187537,1737678632629,-313.83639565,0.00015655,2]
[350187538,1737678632790,-1199.9999999,0.00015655,2]
[350187550,1737678638513,-2425.30791005,0.00015655,2]
[350187551,1737678638523,-250.0,0.00015675,2]
[350187552,1737678638534,-250.0,0.00015816,2]
[350187553,1737678638543,-208.0,0.0001582,2]
[350187554,1737678638553,-250.0,0.00015832,2]
[350187555,1737678638562,-1000.0,0.00015929,2]
[350187556,1737678638571,-183.69,0.00015929,2]
[350187557,1737678638580,-9252.71919217,0.00016,2]
[350187558,1737678638589,-208.0,0.0001624,2]
[350187559,1737678638598,-280.04,0.00016274,2]
[350187560,1737678638607,-466.26471362,0.00016437,2]
[350187561,1737678638616,-500.0,0.00016438,2]
[350187562,1737678638626,-500.0,0.00016438,2]
[350187563,1737678638636,-500.0,0.00016438,2]
[350187564,1737678638644,-500.0,0.00016438,2]
[350187565,1737678638653,-501.71922145,0.00016438,2]
[350187566,1737678638662,-213.99,0.00016438,2]
[350187571,1737678638851,-500.0,0.00016438,2]
[350187572,1737678638861,-500.0,0.00016438,2]
[350187573,1737678638873,-632.82828534,0.00016438,2]
[350187574,1737678638883,-500.0,0.00016438,2]
[350187575,1737678638893,-500.0,0.00016438,2]
[350187576,1737678638902,-500.0,0.00016438,2]
[350187577,1737678638912,-500.0,0.00016438,2]
[350187578,1737678638922,-500.0,0.00016438,2]
[350187579,1737678638932,-500.0,0.00016438,2]
[350187580,1737678638941,-500.0,0.00016438,2]
[350187581,1737678638952,-500.0,0.00016438,2]
[350187582,1737678638961,-500.0,0.00016438,2]
[350187583,1737678638971,-500.0,0.00016438,2]
[350187584,1737678638981,-192.29706737,0.00016438,2]
[350187585,1737678638993,-307.70293263,0.00016438,2]
[350187586,1737678639002,-500.0,0.00016438,2]
[350187587,1737678639011,-500.0,0.00016438,2]
[350187588,1737678639021,-500.0,0.00016438,2]
[350187589,1737678639030,-500.0,0.00016438,2]
[350187590,1737678639039,-500.0,0.00016438,2]
[350187591,1737678639049,-500.0,0.00016438,2]
[350187592,1737678639058,-500.0,0.00016438,2]
[350187593,1737678639067,-247.4377488,0.00016438,2]
[350187594,1737678639078,-252.5622512,0.00016438,2]
[350187595,1737678639088,-500.0,0.00016438,2]
[350187596,1737678639097,-500.0,0.00016438,2]
[350187597,1737678639107,-500.0,0.00016438,2]
[350187598,1737678639115,-500.0,0.00016438,2]
[350187599,1737678639125,-500.0,0.00016438,2]
[350187600,1737678639134,-500.0,0.00016438,2]
[350187601,1737678639144,-90074.52421665,0.00016438,2]
[350187602,1737678639154,-311.23988864,0.00016568,2]
[350187603,1737678639163,-3739.0441301,0.00016574,2]
[350187604,1737678639172,-311.23988864,0.00016577,2]
[350187605,1737678639181,-200.0,0.00016581,2]
[350187606,1737678639190,-200.0,0.00016588,2]
[350187607,1737678639200,-311.23988864,0.0001659,2]
[350187608,1737678639209,-3739.0441301,0.00016595,2]
[350187609,1737678639218,-311.23988864,0.00016608,2]
[350187610,1737678639228,-311.23988865,0.00016608,2]
[350187611,1737678639237,-2500.0,0.00016611,2]
[350187612,1737678639246,-3739.0441301,0.00016611,2]
[350187613,1737678639256,-200.0,0.00016612,2]
[350187614,1737678639265,-1643.87199686,0.00016612,2]
[350187615,1737678639275,-200.0,0.00016617,2]
[350187616,1737678639286,-3739.0441301,0.00016618,2]
[350187617,1737678639295,-311.23988865,0.00016626,2]
[350187618,1737678639305,-311.23988865,0.00016638,2]
[350187619,1737678639315,-200.0,0.00016643,2]
[350187620,1737678639325,-3739.0441301,0.00016645,2]
[350187621,1737678639334,-200.0,0.00016647,2]
[350187622,1737678639344,-311.23988865,0.00016648,2]
[350187623,1737678639353,-200.0,0.0001665,2]
[350187624,1737678639364,-311.23988865,0.00016652,2]
[350187625,1737678639373,-208.0,0.0001666,2]
[350187626,1737678639382,-200.0,0.00016663,2]
[350187627,1737678639392,-200.0,0.00016663,2]
[350187628,1737678639401,-200.0,0.00016674,2]
[350187629,1737678639410,-200.0,0.00016681,2]
[350187630,1737678639419,-311.23988864,0.00016694,2]
[350187631,1737678639428,-1097.47,0.00016701,2]
[350187632,1737678639437,-500.0,0.0001671,2]
[350187633,1737678639446,-268.555065,0.0001671,2]
[350187634,1737678639456,-808.02,0.0001671,2]
[350187635,1737678639466,-500.0,0.0001671,2]
[350187636,1737678639476,-946.64,0.0001671,2]
[350187637,1737678639485,-180.932053,0.0001671,2]
[350187638,1737678639495,-740.01,0.0001671,2]
[350187639,1737678639505,-500.0,0.0001671,2]
[350187640,1737678639517,-500.0,0.0001671,2]
[350187641,1737678639527,-713.66,0.0001671,2]
[350187642,1737678639537,-1384.63,0.0001671,2]
[350187643,1737678639548,-735.44,0.0001671,2]
[350187644,1737678639557,-500.0,0.0001671,2]
[350187645,1737678639566,-500.0,0.0001671,2]
[350187646,1737678639575,-500.0,0.0001671,2]
[350187647,1737678639584,-905.53,0.0001671,2]
[350187648,1737678639594,-613.84,0.0001671,2]
[350187649,1737678639604,-500.0,0.0001671,2]
[350187650,1737678639613,-500.0,0.0001671,2]
[350187651,1737678639623,-500.0,0.0001671,2]
[350187652,1737678639631,-500.0,0.0001671,2]
[350187653,1737678639640,-500.0,0.0001671,2]
[350187654,1737678639649,-512.48,0.0001671,2]
[350187655,1737678639659,-583.73,0.0001671,2]
[350187656,1737678639668,-500.0,0.0001671,2]
[350187657,1737678639678,-500.0,0.0001671,2]
[350187658,1737678639688,-763.59,0.0001671,2]
[350187659,1737678639697,-500.0,0.0001671,2]
[350187660,1737678639706,-500.0,0.0001671,2]
[350187661,1737678639715,-500.0,0.0001671,2]
[350187662,1737678639724,-500.0,0.0001671,2]
[350187663,1737678639734,-763.79,0.0001671,2]
[350187664,1737678639743,-500.0,0.0001671,2]
[350187665,1737678639753,-500.0,0.0001671,2]
[350187666,1737678639762,-500.0,0.0001671,2]
[350187667,1737678639772,-500.0,0.0001671,2]
[350187668,1737678639781,-500.0,0.0001671,2]
[350187669,1737678639790,-500.0,0.0001671,2]
[350187670,1737678639801,-728.45,0.0001671,2]
[350187671,1737678639810,-670.9,0.0001671,2]
[350187672,1737678639819,-895.99,0.0001671,2]
[350187673,1737678639828,-500.0,0.0001671,2]
[350187674,1737678639838,-500.0,0.0001671,2]
[350187675,1737678639847,-500.0,0.0001671,2]
[350187676,1737678639856,-500.0,0.0001671,2]
[350187677,1737678639865,-608.36,0.0001671,2]
[350187678,1737678639877,-500.0,0.0001671,2]
[350187679,1737678639887,-580.9,0.0001671,2]
[350187680,1737678639896,-500.0,0.0001671,2]
[350187681,1737678639905,-500.0,0.0001671,2]
[350187682,1737678639915,-500.0,0.0001671,2]
[350187683,1737678639924,-500.0,0.0001671,2]
[350187684,1737678639934,-500.0,0.0001671,2]
[350187685,1737678639943,-500.0,0.0001671,2]
[350187686,1737678639952,-500.0,0.0001671,2]
[350187687,1737678639962,-500.0,0.0001671,2]
[350187688,1737678639972,-500.0,0.0001671,2]
[350187689,1737678639981,-500.0,0.0001671,2]
[350187690,1737678639990,-1547.32,0.0001671,2]
[350187691,1737678639999,-500.0,0.0001671,2]
[350187692,1737678640009,-575.52,0.0001671,2]
[350187693,1737678640020,-500.0,0.0001671,2]
[350187694,1737678640031,-500.0,0.0001671,2]
[350187695,1737678640040,-500.0,0.0001671,2]
[350187696,1737678640050,-500.0,0.0001671,2]
[350187697,1737678640059,-1262.66,0.0001671,2]
[350187698,1737678640068,-500.0,0.0001671,2]
[350187699,1737678640078,-500.0,0.0001671,2]
[350187700,1737678640088,-500.0,0.0001671,2]
[350187701,1737678640097,-500.0,0.0001671,2]
[350187702,1737678640108,-500.0,0.0001671,2]
[350187704,1737678640118,-500.0,0.0001671,2]
[350187705,1737678640128,-500.0,0.0001671,2]
[350187706,1737678640137,-500.0,0.0001671,2]
[350187707,1737678640146,-500.0,0.0001671,2]
[350187708,1737678640155,-500.0,0.0001671,2]
[350187709,1737678640166,-500.0,0.0001671,2]
[350187710,1737678640176,-500.0,0.0001671,2]
[350187711,1737678640186,-500.0,0.0001671,2]
[350187712,1737678640195,-500.0,0.0001671,2]
[350187713,1737678640204,-715.08,0.0001671,2]
[350187714,1737678640214,-500.0,0.0001671,2]
[350187715,1737678640224,-500.0,0.0001671,2]
[350187716,1737678640234,-543.82,0.0001671,2]
[350187717,1737678640244,-500.0,0.0001671,2]
[350187718,1737678640254,-500.0,0.0001671,2]
[350187719,1737678640264,-500.0,0.0001671,2]
[350187720,1737678640274,-500.0,0.0001671,2]
[350187721,1737678640284,-500.0,0.0001671,2]
[350187722,1737678640295,-500.0,0.0001671,2]
[350187723,1737678640306,-501.51139785,0.00016711,2]
[350187724,1737678640315,-500.0,0.00016711,2]
[350187725,1737678640325,-505.59318835,0.00016711,2]
[350187726,1737678640334,-500.0,0.00016711,2]
[350187727,1737678640343,-500.0,0.00016711,2]
[350187728,1737678640353,-617.10356608,0.00016711,2]
[350187729,1737678640364,-500.0,0.00016711,2]
[350187730,1737678640373,-500.0,0.00016711,2]
[350187731,1737678640383,-595.46476115,0.00016711,2]
[350187732,1737678640391,-500.0,0.00016711,2]
[350187733,1737678640402,-500.0,0.00016711,2]
[350187734,1737678640411,-500.5970942,0.00016711,2]
[350187735,1737678640420,-500.0,0.00016711,2]
[350187736,1737678640430,-300.0,0.00016711,2]
[350187737,1737678640439,-500.0,0.00016711,2]
[350187738,1737678640448,-500.0,0.00016711,2]
[350187739,1737678640457,-500.0,0.00016711,2]
[350187740,1737678640466,-500.0,0.00016711,2]
[350187741,1737678640475,-500.0,0.00016711,2]
[350187742,1737678640484,-500.0,0.00016711,2]
[350187743,1737678640493,-500.81129647,0.00016711,2]
[350187744,1737678640502,-502.02111909,0.00016711,2]
[350187745,1737678640511,-500.0,0.00016711,2]
[350187746,1737678640520,-500.0,0.00016711,2]
[350187747,1737678640530,-500.0,0.00016711,2]
[350187748,1737678640539,-300.0,0.00016711,2]
[350187749,1737678640549,-500.0,0.00016711,2]
[350187750,1737678640558,-500.0,0.00016711,2]
[350187751,1737678640567,-500.0,0.00016711,2]
[350187752,1737678640576,-500.0,0.00016711,2]
[350187753,1737678640586,-500.0,0.00016711,2]
[350187754,1737678640595,-500.0,0.00016711,2]
[350187755,1737678640604,-500.0,0.00016711,2]
[350187756,1737678640613,-500.0,0.00016711,2]
[350187757,1737678640622,-501.11713027,0.00016711,2]
[350187758,1737678640631,-500.0,0.00016711,2]
[350187759,1737678640641,-500.0,0.00016711,2]
[350187760,1737678640650,-565.58277695,0.00016711,2]
[350187761,1737678640659,-500.34959369,0.00016711,2]
[350187762,1737678640668,-500.0,0.00016711,2]
[350187763,1737678640677,-500.0,0.00016711,2]
[350187764,1737678640686,-500.0,0.00016711,2]
[350187765,1737678640695,-500.0,0.00016711,2]
[350187766,1737678640705,-501.27208296,0.00016711,2]
[350187767,1737678640714,-500.0,0.00016711,2]
[350187768,1737678640723,-500.0,0.00016711,2]
[350187769,1737678640732,-500.0,0.00016711,2]
[350187770,1737678640741,-500.90899813,0.00016711,2]
[350187771,1737678640750,-500.0,0.00016711,2]
[350187772,1737678640759,-500.0,0.00016711,2]
[350187773,1737678640769,-500.0,0.00016711,2]
[350187775,1737678640778,-500.0,0.00016711,2]
[350187777,1737678640787,-500.0,0.00016711,2]
[350187779,1737678640797,-500.0,0.00016711,2]
[350187780,1737678640807,-500.0,0.00016711,2]
[350187782,1737678640816,-500.0,0.00016711,2]
[350187784,1737678640825,-500.0,0.00016711,2]
[350187786,1737678640834,-500.0,0.00016711,2]
[350187787,1737678640843,-500.0,0.00016711,2]
[350187789,1737678640852,-500.0,0.00016711,2]
[350187791,1737678640861,-500.0,0.00016711,2]
[350187793,1737678640870,-500.0,0.00016711,2]
[350187794,1737678640879,-500.0,0.00016711,2]
[350187796,1737678640888,-500.0,0.00016711,2]
[350187798,1737678640897,-500.0,0.00016711,2]
[350187800,1737678640906,-500.0,0.00016711,2]
[350187802,1737678640915,-500.0,0.00016711,2]
[350187803,1737678640925,-500.0,0.00016711,2]
[350187805,1737678640934,-500.0,0.00016711,2]
[350187807,1737678640944,-500.0,0.00016711,2]
[350187809,1737678640953,-500.0,0.00016711,2]
[350187811,1737678640962,-500.0,0.00016711,2]
[350187812,1737678640971,-500.0,0.00016711,2]
[350187814,1737678640980,-500.0,0.00016711,2]
[350187816,1737678640991,-268.37010854,0.00016711,2]
[350187818,1737678641000,-500.0,0.00016711,2]
[350187820,1737678641009,-500.0,0.00016711,2]
[350187822,1737678641019,-500.0,0.00016711,2]
[350187824,1737678641027,-500.0,0.00016711,2]
[350187826,1737678641036,-500.0,0.00016711,2]
[350187828,1737678641045,-500.0,0.00016711,2]
[350187829,1737678641057,-500.0,0.00016711,2]
[350187831,1737678641066,-500.0,0.00016711,2]
[350187833,1737678641075,-500.0,0.00016711,2]
[350187835,1737678641084,-500.0,0.00016711,2]
[350187837,1737678641093,-369.36472891,0.00016711,2]
[350187839,1737678641102,-500.0,0.00016711,2]
[350187841,1737678641111,-500.0,0.00016711,2]
[350187842,1737678641120,-500.0,0.00016711,2]
[350187844,1737678641129,-500.0,0.00016711,2]
[350187846,1737678641138,-500.0,0.00016711,2]
[350187848,1737678641147,-500.0,0.00016711,2]
[350187850,1737678641156,-500.0,0.00016711,2]
[350187852,1737678641165,-500.0,0.00016711,2]
[350187854,1737678641174,-500.0,0.00016711,2]
[350187855,1737678641183,-500.0,0.00016711,2]
[350187857,1737678641192,-500.0,0.00016711,2]
[350187859,1737678641201,-500.0,0.00016711,2]
[350187861,1737678641210,-500.0,0.00016711,2]
[350187863,1737678641219,-500.0,0.00016711,2]
[350187865,1737678641228,-500.0,0.00016711,2]
[350187866,1737678641237,-500.0,0.00016711,2]
[350187868,1737678641246,-500.0,0.00016711,2]
[350187870,1737678641256,-500.0,0.00016711,2]
[350187872,1737678641265,-500.0,0.00016711,2]
[350187874,1737678641274,-500.0,0.00016711,2]
[350187876,1737678641285,-500.0,0.00016711,2]
[350187878,1737678641295,-500.0,0.00016711,2]
[350187880,1737678641306,-500.0,0.00016711,2]
[350187881,1737678641315,-500.0,0.00016711,2]
[350187883,1737678641325,-500.0,0.00016711,2]
[350187885,1737678641334,-500.0,0.00016711,2]
[350187887,1737678641343,-500.0,0.00016711,2]
[350187889,1737678641353,-500.0,0.00016711,2]
[350187891,1737678641363,-502.27409395,0.00016711,2]
[350187893,1737678641373,-500.0,0.00016711,2]
[350187895,1737678641382,-500.0,0.00016711,2]
[350187896,1737678641391,-500.0,0.00016711,2]
[350187898,1737678641400,-500.0,0.00016711,2]
[350187900,1737678641409,-506.63069724,0.00016711,2]
[350187902,1737678641418,-500.0,0.00016711,2]
[350187904,1737678641427,-500.0,0.00016711,2]
[350187906,1737678641436,-500.0,0.00016711,2]
[350187908,1737678641447,-500.0,0.00016711,2]
[350187910,1737678641456,-500.0,0.00016711,2]
[350187912,1737678641465,-500.0,0.00016711,2]
[350187914,1737678641474,-500.0,0.00016711,2]
[350187915,1737678641484,-500.0,0.00016711,2]
[350187917,1737678641492,-500.0,0.00016711,2]
[350187919,1737678641502,-500.0,0.00016711,2]
[350187921,1737678641511,-500.0,0.00016711,2]
[350187923,1737678641519,-500.0,0.00016711,2]
[350187925,1737678641528,-500.0,0.00016711,2]
[350187927,1737678641537,-365.15199539,0.00016711,2]
[350187928,1737678641546,-500.0,0.00016711,2]
[350187930,1737678641558,-500.0,0.00016711,2]
[350187932,1737678641568,-500.0,0.00016711,2]
[350187934,1737678641577,-500.0,0.00016711,2]
[350187936,1737678641586,-500.0,0.00016711,2]
[350187938,1737678641595,-500.0,0.00016711,2]
[350187940,1737678641604,-500.0,0.00016711,2]
[350187941,1737678641612,-500.0,0.00016711,2]
[350187943,1737678641621,-500.0,0.00016711,2]
[350187945,1737678641630,-500.0,0.00016711,2]
[350187947,1737678641639,-500.0,0.00016711,2]
[350187949,1737678641648,-500.0,0.00016711,2]
[350187951,1737678641657,-500.0,0.00016711,2]
[350187953,1737678641665,-500.0,0.00016711,2]
[350187954,1737678641675,-500.0,0.00016711,2]
[350187955,1737678641684,-500.0,0.00016711,2]
[350187956,1737678641694,-500.0,0.00016711,2]
[350187957,1737678641702,-500.0,0.00016711,2]
[350187958,1737678641711,-500.0,0.00016711,2]
[350187959,1737678641720,-410.05,0.00016711,2]
[350187960,1737678641729,-500.0,0.00016711,2]
[350187961,1737678641738,-500.0,0.00016711,2]
[350187962,1737678641747,-500.0,0.00016711,2]
[350187963,1737678641755,-500.0,0.00016711,2]
[350187964,1737678641764,-500.0,0.00016711,2]
[350187965,1737678641777,-500.0,0.00016711,2]
[350187966,1737678641786,-500.0,0.00016711,2]
[350187967,1737678641795,-500.0,0.00016711,2]
[350187969,1737678641808,-500.0,0.00016711,2]
[350187970,1737678641817,-500.0,0.00016711,2]
[350187972,1737678641827,-598.0,0.00016711,2]
[350187974,1737678641836,-500.0,0.00016711,2]
[350187976,1737678641844,-500.0,0.00016711,2]
[350187978,1737678641854,-500.0,0.00016711,2]
[350187980,1737678641863,-500.0,0.00016711,2]
[350187982,1737678641874,-1256.46,0.00016711,2]
[350187984,1737678641883,-500.0,0.00016711,2]
[350187986,1737678641892,-500.0,0.00016711,2]
[350187988,1737678641902,-500.0,0.00016711,2]
[350187990,1737678641911,-500.0,0.00016711,2]
[350187992,1737678641920,-500.0,0.00016711,2]
[350187994,1737678641929,-500.0,0.00016711,2]
[350187996,1737678641938,-500.0,0.00016711,2]
[350187998,1737678641947,-500.0,0.00016711,2]
[350188000,1737678641956,-500.0,0.00016711,2]
[350188002,1737678641966,-500.0,0.00016711,2]
[350188004,1737678641975,-500.0,0.00016711,2]
[350188006,1737678641984,-500.0,0.00016711,2]
[350188008,1737678641993,-500.0,0.00016711,2]
[350188010,1737678642003,-500.0,0.00016711,2]
[350188012,1737678642012,-500.0,0.00016711,2]
[350188014,1737678642021,-500.0,0.00016711,2]
[350188016,1737678642030,-500.0,0.00016711,2]
[350188018,1737678642039,-500.0,0.00016711,2]
[350188020,1737678642049,-500.0,0.00016711,2]
[350188022,1737678642062,-500.0,0.00016711,2]
[350188024,1737678642071,-500.0,0.00016711,2]